Cogmind - Beta 13 *** ADVENTURER MODE // 2024.03.21 @ 18:14:44 Player: bryce Result: Destroyed by as-78410 with Assembled Blade Performance ------------- Evolutions (0) 0 Regions Visited (2) 400 Robots Destroyed (19) 95 Value Destroyed (550) 550 Prototype IDs (0) 0 Alien Tech Used (0) 0 Bonus (0) 0 TOTAL SCORE: 1045 Bonus ------- None Cogmind --------- Core Integrity 0/250 Matter 281/300 Energy 500/500 System Corruption 0% Temperature Cool (24) Movement Walking (330) Ox3 Location -10/Mines Parts ------- > --- POWER (1) -------- Ion Engine > --- PROPULSION (2) --- Aluminum Leg > --- UTILITY (2) ------ Large Storage Unit High-capacity Battery > --- WEAPON (2) ------- Light Cannon Light Cannon > --- INVENTORY (15) --- Ion Engine Light Ion Engine Light Ion Engine Light Ion Engine Wheel Wheel Large Storage Unit EM Pulse Gun Small Laser Small Laser Beam Cannon Subdweller Machine Gun Scrap Shield Fragment (49) Scrap Shield Fragment (48) Peak State ------------ > --- POWER ------------ Light Nuclear Core > --- PROPULSION ------- Light Treads Light Treads > --- UTILITY ---------- Large Storage Unit High-capacity Battery > --- WEAPON ----------- Particle Gun Light Cannon > --- INVENTORY -------- Light Ion Engine Light Ion Engine Aluminum Leg Aluminum Leg Wheel Wheel Large Storage Unit Small Laser Small Laser Beam Cannon Light Cannon Light Cannon [Rating: 11] Favorites ----------- Power Ion Engine Engine Ion Engine Power Core Light Nuclear Core Propulsion Light Treads Treads Light Treads Leg Aluminum Leg Wheel Wheel Utility Large Storage Unit Storage Large Storage Unit Weapon Light Cannon Energy Gun Particle Gun Energy Cannon Beam Cannon Ballistic Gun Assault Rifle Ballistic Cannon Light Cannon Build | -11 -10 -10 ------- Run | Yrd Mat Min Slots Evolved . | . . . Power . | . . . Propulsion . | . . . Utility . | . . . Weapon . | . . . Parts Attached 25 | 7 18 . Power 5 | 1 4 . Engine 3 | 1 2 . Core 2 | . 2 . Reactor . | . . . Propulsion 6 | 3 3 . Treads 3 | 2 1 . Leg 2 | . 2 . Wheel 1 | 1 . . Hover . | . . . Flight . | . . . Utility 3 | 1 2 . Device . | . . . Storage 3 | 1 2 . Processor . | . . . Hackware . | . . . Protection . | . . . Artifact . | . . . Weapon 11 | 2 9 . Energy Gun 4 | . 4 . Energy Cannon 1 | . 1 . Ballistic Gun 3 | 2 1 . Ballistic Cannon 3 | . 3 . Launcher . | . . . Special Weapon . | . . . Impact Weapon . | . . . Slashing Weapon . | . . . Piercing Weapon . | . . . Special Melee Weapon . | . . . Unidentified Prototypes . | . . . Parts Lost 5 | . 4 1 Power 1 | . 1 . Propulsion 3 | . 2 1 Utility . | . . . Weapon 1 | . 1 . Highest Loss Streak 4 | . 4 1 To Critical Strikes . | . . . Average Slot Usage (%) 91 | . 91 100 Engine 7 | . 6 14 Core 6 | . 7 . Treads 22 | . 23 . Leg 4 | . 4 28 Storage 20 | . 20 28 Energy Gun 10 | . 11 . Ballistic Gun 4 | . 5 . Ballistic Cannon 11 | . 11 28 Naked Turns . | . . . Heaviest Build 35 | 14 35 35 Greatest Support 40 | 40 40 20 Greatest Overweight (x) 2 | 2 1 1 Average Overweight (x) . | . . 1 Largest Inventory Capacity 15 | 8 15 15 Average Capacity 12 | 7 12 15 Most Carried 15 | 6 15 14 Average Carried 10 | 3 10 14 Final Capacity 15 | 8 15 15 Final Carried 14 | 6 14 14 Class Distribution -------------------- 100% | Mutant Dominant Class ---------------- Mutant | -10/Materials Mutant | -10/Mines Resources | -11 -10 -10 ----------- Run | Yrd Mat Min Matter Collected 655 | 220 435 . Remotely . | . . . Salvage Created 767 | . 763 4 Parts 28 | . 28 . Haulers Intercepted 2 | . 2 . Recyclers Shooed 1 | . 1 . Parts Field Recycled . | . . . Retrieved Matter . | . . . Parts Self-Destructed . | . . . Prevented . | . . . Kills | -11 -10 -10 ------- Run | Yrd Mat Min Combat Hostiles Destroyed 15 | . 14 1 Guns 8 | . 8 . Cannons 7 | . 6 1 Classes Destroyed 6 | . 5 1 Worker 1 | . 1 . Hauler 2 | . 2 . Recycler 2 | . 2 . Grunt 11 | . 11 . Subdweller 3 | . 3 . Assembled 1 | . . 1 Best Kill Streak 4 | . 4 1 Combat Bots Only 3 | . 3 1 Max Kills in Single Turn 1 | . 1 1 Gunslinging . | . . . Exploded . | . . . Melee . | . . . Uniques/NPCs Destroyed . | . . . Combat | -11 -10 -10 -------- Run | Yrd Mat Min Hostile Shots Fired 163 | . 135 28 Missed 40 | . 31 9 Damage Taken 1519 | . 1248 271 Core 256 | . 223 33 Absorbed by Shields . | . . . Ignored by Resistances 442 | . 367 75 Core Remaining (%) 100 | 100 . . Volleys Fired 65 | . 62 3 Largest 2 | . 2 2 Hottest 125 | . 125 70 Shots Fired 116 | . 110 6 Gun 71 | . 71 . Cannon 45 | . 39 6 Launcher . | . . . Special . | . . . Kinetic 54 | . 48 6 Thermal 58 | . 58 . Explosive . | . . . Electromagnetic 4 | . 4 . Robot Hit Streak 63 | . 63 3 Robot Miss Streak 3 | . 1 3 Penetration Max . | . . . Secondary Targets . | . . . Shots Hit Robots 100 | . 97 3 Core Hits 33 | . 30 3 Critical Kills . | . . . Critical Parts Destroyed . | . . . Critical Strikes 2 | . 2 . Burn 1 | . 1 . Blast 1 | . 1 . Melee Attacks . | . . . Impact . | . . . Slashing . | . . . Piercing . | . . . Sneak Attacks . | . . . Combat Hostiles . | . . . Follow-up Attacks . | . . . Damage Inflicted 1546 | . 1477 69 Guns 884 | . 884 . Cannons 662 | . 593 69 Explosions . | . . . Melee . | . . . Ramming . | . . . Kinetic 720 | . 651 69 Thermal 781 | . 781 . Explosive . | . . . Electromagnetic 45 | . 45 . Impact . | . . . Slashing . | . . . Piercing . | . . . Highest Corruption . | . . . Average Corruption . | . . . Corruption Purged . | . . . Corruption Blocked . | . . . Overload Shots . | . . . Overflow Damage 10 | . 10 . Projectiles 10 | . 10 . Explosions . | . . . Melee . | . . . Knockbacks 10 | . 9 1 Impact . | . . . Kinetic 10 | . 9 1 Secondary . | . . . Self-Inflicted Damage . | . . . Shots . | . . . Rammed . | . . . Targets Rammed . | . . . Kicked . | . . . Crushed . | . . . Highest Temperature 402 | . 402 24 Average Temperature 146 | . 150 13 Received Heat Transfer 444 | . 444 . Effects 9 | . 9 . Shutdowns 3 | . 3 . Energy Bleed 3 | . 3 . Matter Decay 1 | . 1 . Short Circuit 2 | . 2 . Siege Activations . | . . . Robots Corrupted . | . . . Combat Hostiles . | . . . Parts Fried . | . . . Impact Corruptions . | . . . Robots Melted . | . . . Combat Hostiles . | . . . Parts Melted 1 | . 1 . Heat Transferred 1882 | . 1882 . Parts Sabotaged . | . . . Parts Stolen . | . . . Parts Stripped . | . . . Power Chain Reactions . | . . . Alert | -11 -10 -10 ------- Run | Yrd Mat Min Peak Influence 215 | . 215 . Initial . | . . . Average 68 | . 78 . Maximum Alert Level 1 | . 1 . Low Security (%) 86 | 100 84 100 Level 1 13 | . 15 . Level 2 . | . . . Level 3 . | . . . Level 4 . | . . . Level 5 . | . . . High Security . | . . . Max Security . | . . . Squads Dispatched 1 | . 1 . Investigation 1 | . 1 . Extermination . | . . . Reinforcement . | . . . Assault . | . . . Garrison . | . . . Intercept . | . . . Searches Triggered . | . . . Construction Impeded . | . . . Haulers Reinforced . | . . . Active Scanning Responses . | . . . Cargo Convoy Interrupts . | . . . Stealth | -11 -10 -10 --------- Run | Yrd Mat Min Distress Signals 1 | . 1 . Communications Jammed . | . . . Distress Signals . | . . . Times Spotted 37 | . 21 16 Peak Tracking Total 18 | . 4 18 Tactical Retreats 1 | . 1 . Traps | -11 -10 -10 ------- Run | Yrd Mat Min Traps Triggered 2 | . 2 . Indirectly . | . . . Trap Hack Attempts . | . . . Triggered . | . . . Disarmed . | . . . Reprogrammed . | . . . Reused . | . . . Traps Extracted . | . . . Installed . | . . . Triggered . | . . . Machines | -11 -10 -10 ---------- Run | Yrd Mat Min Machines Disabled . | . . . Max in Single Turn . | . . . Machines Repaired . | . . . Machines Dismantled . | . . . Machines Sabotaged . | . . . Overloaded Fab Kills . | . . . Hacking | -11 -10 -10 --------- Run | Yrd Mat Min Machines Accessed 1 | . 1 . Terminals . | . . . Fabricators . | . . . Repair Stations . | . . . Recycling Units 1 | . 1 . Scanalyzers . | . . . Garrison Access . | . . . Total Hacks 1 | . 1 . Successful 1 | . 1 . Failed . | . . . Catastrophic . | . . . Database Lockouts . | . . . Manual . | . . . Terminals . | . . . Fabricators . | . . . Repair Stations . | . . . Recycling Units 1 | . 1 . Scanalyzers . | . . . Garrison Access . | . . . Terminal Hacks . | . . . Fabricator Hacks . | . . . Repair Station Hacks . | . . . Recycling Unit Hacks 1 | . 1 . Retrieve Components 1 | . 1 . Scanalyzer . | . . . Garrison Access Hacks . | . . . Unauthorized Hacks . | . . . Terminals . | . . . Fabricators . | . . . Repair Stations . | . . . Recycling Units . | . . . Scanalyzers . | . . . Garrison Access . | . . . Data Cores Recovered . | . . . Used . | . . . Hacking Detections . | . . . Full Trace Events . | . . . Feedback Events . | . . . Feedback Blocked . | . . . Robot Schematics Acquired . | . . . Robots Built . | . . . Authchips . | . . . Time . | . . . Total Robot Build Rating . | . . . Part Schematics Acquired . | . . . Parts Built . | . . . Authchips . | . . . Time . | . . . Total Part Build Rating . | . . . Parts Repaired . | . . . Time . | . . . Parts Recycled . | . . . Recycled Matter . | . . . Retrieved Matter . | . . . Retrieved Components 10 | . 10 . Parts Scanalyzed . | . . . Part Schematics Acquired . | . . . Parts Damaged . | . . . Bothacking | -11 -10 -10 ------------ Run | Yrd Mat Min Used RIF Installer . | . . . Robots Hacked . | . . . Non-combat . | . . . Combat . | . . . Robot Hacks Applied . | . . . Relay Couplers Released . | . . . Fabnet Peak Effective % . | . . . Robots Rewired . | . . . Allies Hacked . | . . . Hacks Repelled . | . . . Allies | -11 -10 -10 -------- Run | Yrd Mat Min Total Allies . | . . . Largest Group . | . . . Highest-Rated Group . | . . . Highest-Rated Ally . | . . . Total Orders . | . . . Ally Attacks . | . . . Total Damage . | . . . Kills . | . . . Allies Corrupted . | . . . Allies Melted . | . . . Intel | -11 -10 -10 ------- Run | Yrd Mat Min Robot Analysis Total . | . . . Derelict Logs Recovered . | . . . Drone Launches . | . . . Drone Recoveries . | . . . Exploration | -11 -10 -10 ------------- Run | Yrd Mat Min Turns Passed 955 | 97 840 18 Spaces Moved 420 | 59 356 5 Core 21 | 21 . . Treads 347 | 38 309 . Legs 52 | . 47 5 Wheels . | . . . Hover . | . . . Flight . | . . . Fastest Speed 50 | 50 160 190 Average Speed 160 | 139 163 190 Slowest Speed 190 | 160 190 190 Overloaded Moves . | . . . Propulsion Burnouts . | . . . Robots Hopped . | . . . Cave-ins Triggered . | . . . Exploration Rate (%) 21 | 4 51 8 Regions Visited 2 Branch Regions 1 Pre-discovered Areas . | . . . Known Exits Taken . | . . . Unknown Exits Taken 2 | 1 1 . Scrap Searched . | . . . Spaces Dug . | . . . Terrain Destroyed . | . . . Melee . | . . . Projectile . | . . . AOE . | . . . Terrain Rammed . | . . . Walls Destroyed . | . . . Machines Disabled . | . . . Actions | -11 -10 -10 --------- Run | Yrd Mat Min Total 583 | 71 504 8 Wait 41 | . 41 . Move 418 | 58 355 5 Hop . | . . . Pick Up 21 | 5 16 . Fast Attach 13 | 7 6 . Attach 6 | . 6 . Detach 1 | 1 . . Swap 6 | . 6 . Drop 12 | . 12 . Fire 65 | . 62 3 Melee . | . . . Ram . | . . . Kick . | . . . Crush . | . . . Escape Stasis . | . . . Rewire . | . . . Trap . | . . . Miscellaneous . | . . . Route ------- -11/Scrapyard -10/Materials (discovered 2 exits: [*Mat] / [*Min]) -10/Mines History --------- Turn | Location | Event 10 | -11/Scrapyard | Discovered new exit (range 16) 98 | -11/Scrapyard | Entered Materials 239 | -10/Materials | Discovered new exit (range 9) 357 | -10/Materials | Build established: Mutant 592 | -10/Materials | Discovered new exit (range 5) 700 | -10/Materials | Derelicts attacked the area 760 | -10/Materials | Core integrity fell below 50% 830 | -10/Materials | Core integrity fell below 20% 850 | -10/Materials | Lost 4 parts (1p2n1w) 938 | -10/Materials | Entered Mines 943 | -10/Mines | Assembled infested the area 956 | -10/Mines | Destroyed by as-78410 with Assembled Blade Last Messages --------------- 00897_ R-06 Scavenger knocked back. 00897_ R-06 Scavenger destroyed. 00899_ K-01 Serf collects debris. 00902_ Acquired 2 matter. 00902_ K-01 Serf collects debris. 00904_ Acquired 46 matter. 00904_ K-01 Serf collects debris. 00913_ K-01 Serf cleans the Repair Station. 00915_ K-01 Serf collects debris. 00918_ M-13 Machinist repairs Mining Laser. 00920_ K-01 Serf collects debris. 00921_ K-01 Serf cleans the Repair Station. LOCATION=UNKNOWN GOAL=ESCAPE 00943_ ALERT: Infestation in the mines, dispatching Demolisher response squad. 00944_ T-07 Excavator destroyed. 00951_ as-28854 knocked back. 00954_ as-96009 destroyed. 00956_ Aluminum Leg destroyed. Map ----- +----------------------------------------------------+ | | | | | | | | | | | | | | | | | | | | | | | | | | | | | | | | | ?????????????????????????????????????????????????? | | ?????????????????????????????????????????????????? | | ??????????????????????#####??????????????????????? | | ????????????????????### ##?????????????????????? | | ???????????????????## #?????????????????????? | | ???????????????????# #?????????????????????? | | ???????????????????# #?????????????????????? | | ???????????????????# ##?????????????????????? | | ???????????????????## = #??????????????????????? | | ????????????????????####a@#??????????????????????? | | ???????????????????????#aaa ?????????????????????? | | ???????????????????????#a a a???????????????????? | | ???????????????????????# %aa ?????????????????? | | ??????????????????????? a ???????????????? | | ??????????????????????? a aa ?????????????? | | ??????????????????????# ##????????????? | | ??????????????????????# a % #?????????????? | | ??????????????????????## #?????????????? | | ???????????????????????# ## #?????????????? | | ???????????????????????# ##?### #?????????????? | | ??????????????????????? #?????#a ?????????????? | | ??????????????????????? #?????? ??????????????? | | ??????????????????????? ??????????????????????? | | ??????????????????????? ??????????????????????? | | ???????????????????????# ??????????????????????? | | ?????????????????????????????????????????????????? | | ?????????????????????????????????????????????????? | | ?????????????????????????????????????????????????? | | ?????????????????????????????????????????????????? | | ?????????????????????????????????????????????????? | | ?????????????????????????????????????????????????? | | ?????????????????????????????????????????????????? | | ?????????????????????????????????????????????????? | | ?????????????????????????????????????????????????? | +----------------------------------------------------+ Best States ------------- Heat Dissipation 25 Energy Generation 14 Energy Capacity 500 Matter Stores 300 Matter Capacity 300 Sight Range 16 Terrain Scan Density 10 Resistance: KI 20 Resistance: TH 20 Resistance: EX 20 Resistance: EM 20 Resistance: I 20 Resistance: S 20 Resistance: P 20 Evasion (%) 40 Recoil Reduction 2 Offensive Hacking 10 Item Schematics ----------------- None Robot Schematics ------------------ None Fabricated ------------ Nothing Alien Tech Used ----------------- None Achievements -------------- None Challenges ------------ None Game ------ Seed NetworkLaserLattice Manual? 0 Play Time 00:11:13 Cumulative 59.9 hours Start 2024.03.21 @ 17:56:53 End 2024.03.21 @ 18:14:44 Sessions 1 Manual Loads 0 Difficulty Adventurer Special Mode None Game No. 106 Rogue 83 Adventurer 23 Explorer 0 Win Type - Total 1 Types 1/0/0/0/0/0/0/0/0 Lore% 21 Gallery% 38 Achievement% 29 Wizard Run 0 Options --------- Layout 1 ASCII 0 Keyboard 0 Movement Mouse Keybinds 0 Fullscreen 1 Font 24/Smallcaps Map View 50x35 Zoom Use 0% Tactical HUD 1 Map Filters NONE Filters NONE Steam 1 RUN: 6cec3764-f81f-4999-ba42-405dcd9a6126